bitfinex/quotes_SOLUSD_20250313
["timestamp","ask_amount","ask_price","bid_price","bid_amount"]
[1741866708797,19.7079,126.86,126.82,42.0537]
[1741866708979,24.39847577,126.83,126.82,42.0537]
[1741866709392,24.39847577,126.84,126.82,42.0537]
[1741866709580,24.39847577,126.85,126.82,42.0537]
[1741866710573,24.39847577,126.86,126.82,42.0537]
[1741866710784,24.39847577,126.85,126.82,42.0537]
[1741866710982,24.39847577,126.87,126.83,0.28432314]
[1741866711182,24.39847577,126.87,126.83,180.13802314]
[1741866711595,24.46147577,126.88,126.83,180.13802314]
[1741866711795,0.063,126.88,126.83,204.53649891]
[1741866712491,0.063,126.88,126.85,24.68279891]
[1741866712695,0.063,126.88,126.87,24.68279891]
[1741866712998,0.063,126.88,126.87,180.13802314]
[1741866713681,0.063,126.88,126.87,179.8537]
[1741866714808,7.9444,126.88,126.87,179.8537]
[1741866715001,32.34287577,126.88,126.87,42.0537]
[1741866716299,32.34287577,126.88,126.84,179.8537]
[1741866716500,24.39847577,126.86,126.84,42.0537]
[1741866717321,7.8833,126.85,126.84,42.0537]
[1741866717893,32.28177577,126.85,126.84,42.0537]
[1741866718293,7.8833,126.85,126.84,42.0537]
[1741866718493,32.27204431,126.86,126.84,42.0537]
[1741866718793,46.90545701,126.86,126.84,42.0537]
[1741866718994,39.02255701,126.85,126.84,42.0537]
[1741866719184,46.90585701,126.85,126.84,42.0537]
[1741866720086,46.96885701,126.85,126.84,42.0537]
[1741866720281,0.063,126.85,126.84,42.0537]
[1741866721007,7.9463,126.85,126.84,42.0537]
[1741866721195,0.063,126.85,126.84,42.0537]
[1741866722398,0.063,126.85,126.84,42.33802314]
[1741866723392,0.063,126.85,126.84,42.0537]
[1741866726312,39.08555701,126.85,126.84,42.0537]
[1741866727011,39.08555701,126.85,126.81,137.83]
[1741866727218,39.02255701,126.83,126.81,0.03]
[1741866727605,7.8851,126.82,126.81,0.03]
[1741866728598,7.8847,126.83,126.81,0.03]
[1741866729713,0.063,126.85,126.81,57.98652901]
[1741866729921,0.063,126.85,126.81,278.08652901]
[1741866731826,0.063,126.85,126.82,7.8851]
[1741866732127,0.063,126.85,126.81,228.29982314]
[1741866732344,0.063,126.84,126.81,220.41432314]
[1741866734217,39.08555701,126.84,126.81,220.13]
[1741866735319,39.08555701,126.84,126.81,82.33]
[1741866736429,7.9472,126.84,126.81,82.33]
[1741866736815,0.063,126.84,126.81,82.33]
[1741866737730,7.947,126.84,126.81,82.33]
[1741866737931,46.96955701,126.84,126.81,82.33]
[1741866738115,39.02255701,126.83,126.81,82.33]
[1741866738307,7.8851,126.82,126.81,82.33]
[1741866738933,32.28679705,126.82,126.81,82.33]
[1741866739102,32.28679705,126.82,126.81,0.03]
[1741866741416,24.40169705,126.83,126.81,0.03]
[1741866741727,32.34889705,126.84,126.81,0.03]
[1741866741907,24.46469705,126.84,126.81,0.03]
[1741866742431,32.34879705,126.84,126.81,0.03]
[1741866742628,24.40169705,126.83,126.81,0.03]
[1741866743516,7.9471,126.84,126.81,0.03]
[1741866743724,32.34879705,126.84,126.81,0.03]
[1741866743910,24.40169705,126.83,126.81,0.03]
[1741866744437,32.28629705,126.83,126.81,0.03]
[1741866747820,24.40169705,126.82,126.81,0.03]
[1741866749325,32.28679705,126.82,126.81,0.03]
[1741866755519,24.40169705,126.83,126.81,0.03]
[1741866756136,24.46469705,126.84,126.81,0.03]
[1741866757027,0.063,126.84,126.81,0.03]
[1741866758333,24.46469705,126.84,126.81,0.03]
[1741866758542,0.063,126.84,126.81,0.03]
[1741866758923,24.46469705,126.84,126.81,0.03]
[1741866759640,7.8845,126.83,126.81,0.03]
[1741866760643,0.063,126.84,126.81,18.963972]
[1741866760942,0.063,126.84,126.81,263.46566905]
[1741866761241,7.9469,126.84,126.81,263.46566905]
[1741866761741,0.063,126.84,126.81,271.35116905]
[1741866762038,0.063,126.84,126.81,263.46566905]
[1741866762426,0.063,126.84,126.81,271.35126905]
[1741866762817,0.063,126.84,126.83,43.33566905]
[1741866763023,0.063,126.84,126.83,45.29716905]
[1741866764046,0.063,126.84,126.83,53.18166905]
[1741866764238,0.063,126.84,126.83,28.779972]
[1741866764755,0.063,126.84,126.83,273.28166905]
[1741866765045,0.063,126.84,126.83,248.879972]
[1741866765428,0.063,126.84,126.83,240.995472]
[1741866767921,0.063,126.84,126.83,220.1]
[1741866768549,0.063,126.84,126.83,228.26882314]
[1741866768846,0.063,126.84,126.83,220.38432314]
[1741866771449,0.063,126.84,126.83,220.1]
[1741866774645,24.46469705,126.84,126.83,220.1]
[1741866775532,32.34859705,126.84,126.83,220.1]
[1741866776248,32.34859705,126.84,126.81,0.03]
[1741866776249,32.34859705,126.84,126.81,82.33]
[1741866776445,24.40169705,126.82,126.81,82.33]
[1741866778040,32.28679705,126.82,126.81,82.33]
[1741866778351,32.28679705,126.82,126.81,0.03]
[1741866779247,24.40169705,126.83,126.81,0.03]
[1741866779454,32.28639705,126.83,126.81,0.03]
[1741866780155,24.46469705,126.84,126.81,0.31432314]
[1741866780352,0.063,126.84,126.81,0.31432314]
[1741866780558,7.947,126.84,126.81,0.31432314]
[1741866781052,32.34869705,126.84,126.81,0.31432314]
[1741866782053,32.34869705,126.84,126.81,220.41432314]
[1741866782352,0.063,126.84,126.81,220.41432314]
[1741866782556,0.063,126.84,126.81,252.70172019]
[1741866782751,0.063,126.84,126.81,228.30002314]
[1741866782963,7.947,126.84,126.81,220.41432314]
[1741866783271,0.063,126.84,126.81,220.41432314]
[1741866783459,0.063,126.84,126.81,228.30002314]
[1741866783770,0.063,126.84,126.81,220.41432314]
[1741866786739,0.063,126.84,126.81,252.70172019]
[1741866787466,0.063,126.84,126.83,0.28432314]
[1741866788555,0.063,126.84,126.83,51.22016905]
[1741866788740,0.063,126.84,126.83,26.818472]
[1741866789358,0.063,126.84,126.83,18.933972]
[1741866790182,0.063,126.84,126.83,321.32016905]
[1741866790472,0.063,126.84,126.83,321.28711127]
[1741866790652,0.063,126.84,126.83,312.51446082]
[1741866791754,0.063,126.88,126.86,0.28432314]
[1741866791956,0.063,126.88,126.87,15.88031196]
[1741866792255,0.063,126.88,126.87,254.50037351]
[1741866792747,0.063,126.88,126.87,271.15303145]
[1741866792947,0.063,126.88,126.87,323.32213145]
[1741866794064,0.063,126.89,126.88,43.29703145]
[1741866794261,0.063,126.9,126.89,68.933972]
[1741866794450,0.063,126.9,126.89,93.29703145]
[1741866794946,0.063,126.9,126.89,107.23045382]
[1741866795347,0.063,126.9,126.89,107.73045382]
[1741866795763,0.063,126.9,126.89,107.23045382]
[1741866795965,0.063,126.9,126.89,107.73045382]
[1741866796141,0.063,126.93,126.92,70.28432314]
[1741866796346,0.063,126.93,126.92,258.6634606]
[1741866796552,0.063,126.93,126.92,257.48233145]
[1741866797154,0.063,126.93,126.92,265.36123145]
[1741866798160,0.063,126.93,126.92,257.48233145]
[1741866798568,0.063,126.93,126.92,265.36123145]
[1741866799250,0.063,126.93,126.92,577.86123145]
[1741866799451,0.063,126.97,126.94,68.933972]
[1741866799673,0.063,126.97,126.95,82.39532314]
[1741866799897,0.063,126.97,126.95,244.55838259]
[1741866801364,0.063,126.97,126.95,252.43548259]
[1741866801546,0.063,126.97,126.95,238.844972]
[1741866802763,24.42605945,126.97,126.95,219.911]
[1741866803472,32.30245945,126.96,126.95,82.111]
[1741866804253,32.30245945,126.96,126.93,82.111]
[1741866804450,24.36305945,126.95,126.93,82.111]
[1741866805456,7.8777,126.94,126.93,82.111]
[1741866806356,32.24045945,126.95,126.93,82.111]
[1741866807280,24.36305945,126.94,126.93,82.111]
[1741866807476,32.24075945,126.94,126.93,82.111]
[1741866808890,51.93505945,126.94,126.89,42.5166]
[1741866809059,24.36305945,126.9,126.89,42.5166]
[1741866809255,24.36305945,126.9,126.87,42.5166]
[1741866809477,24.36305945,126.88,126.87,42.5166]
[1741866810583,24.36305945,126.89,126.87,42.5166]
[1741866811261,32.24395945,126.89,126.87,42.5166]
[1741866811580,24.36305945,126.89,126.87,42.5166]
[1741866813479,24.36305945,126.9,126.87,42.5166]
[1741866813678,24.36305945,126.91,126.88,18.933972]
[1741866814155,7.8783,126.93,126.88,18.933972]
[1741866814359,24.36305945,126.91,126.88,61.450572]
[1741866814559,24.36305945,126.92,126.88,61.450572]
[1741866814982,24.36305945,126.91,126.88,61.450572]
[1741866815974,32.24255945,126.92,126.88,61.450572]
[1741866816175,24.36305945,126.91,126.88,61.450572]
[1741866816591,32.24255945,126.92,126.88,61.450572]
[1741866817091,24.36305945,126.92,126.88,69.331872]
[1741866817877,24.36305945,126.92,126.88,207.131872]
[1741866819382,24.36305945,126.93,126.88,281.49493145]
[1741866820169,24.36305945,126.93,126.88,257.131872]
[1741866820580,24.36305945,126.92,126.88,249.250572]
[1741866820762,24.36305945,126.92,126.88,199.250572]
[1741866820963,24.36305945,126.9,126.88,180.3166]
[1741866821259,24.36305945,126.89,126.88,42.5166]
[1741866822094,24.36305945,126.9,126.88,42.5166]
[1741866822294,24.36305945,126.89,126.88,42.5166]
[1741866823100,32.24385945,126.89,126.88,42.5166]
[1741866823783,24.36305945,126.89,126.88,42.5166]
[1741866824163,32.24355945,126.9,126.88,42.5166]
[1741866824364,24.36305945,126.91,126.88,42.5166]
[1741866824666,24.36305945,126.9,126.88,42.5166]
[1741866825069,24.36305945,126.91,126.88,42.5166]
[1741866825483,24.36305945,126.92,126.88,50.3979]
[1741866825870,24.36305945,126.92,126.88,42.5166]
[1741866826167,24.36305945,126.91,126.88,42.5166]
[1741866826882,24.36305945,126.9,126.88,42.5166]
[1741866827280,32.24325945,126.9,126.88,42.5166]
[1741866828789,24.36305945,126.91,126.88,42.5166]
[1741866830994,32.24315945,126.91,126.88,42.5166]
[1741866831689,24.36305945,126.91,126.88,42.5166]
[1741866832675,32.24215945,126.92,126.88,42.5166]
[1741866832968,32.24215945,126.92,126.88,50.3979]
[1741866834408,32.27165945,126.93,126.89,26.814572]
[1741866834700,24.39305945,126.93,126.89,69.331172]
[1741866835190,32.27155945,126.93,126.89,69.331172]
[1741866835504,24.39305945,126.93,126.89,69.331172]
[1741866836078,32.27135945,126.93,126.89,69.331172]
[1741866836281,32.26969631,126.93,126.89,61.450572]
[1741866836697,23.49966754,126.93,126.89,61.450572]
[1741866837792,23.49966754,126.93,126.89,199.250572]
[1741866839875,15.59136754,126.92,126.89,180.3166]
[1741866840381,15.62136754,126.93,126.9,18.933972]
[1741866840681,15.62136754,126.93,126.9,26.814072]
[1741866840892,7.9083,126.93,126.9,0.28432314]
[1741866841101,7.9083,126.93,126.9,18.933972]
[1741866841305,23.49966754,126.93,126.9,18.933972]
[1741866842110,23.49986754,126.93,126.9,18.933972]
[1741866842294,0.03,126.93,126.9,18.933972]
[1741866842496,15.62136754,126.93,126.9,18.933972]
[1741866842698,15.59136754,126.92,126.9,18.933972]
[1741866843305,15.59136754,126.92,126.89,180.3166]
[1741866843676,15.59136754,126.91,126.89,42.5166]
[1741866844087,15.59136754,126.92,126.89,42.5166]
[1741866844686,15.59136754,126.91,126.89,42.5166]
[1741866844928,7.8802,126.9,126.89,42.5166]
[1741866846608,19.7258,126.93,126.89,42.5166]
[1741866846609,23.47026754,126.92,126.89,42.5166]
[1741866849894,15.59136754,126.9,126.87,42.5796]
[1741866850078,15.59136754,126.89,126.87,42.5796]
[1741866850282,27.5763,126.92,126.87,42.5796]
[1741866850283,15.59136754,126.88,126.87,42.5796]
[1741866850516,23.47276754,126.88,126.87,0.063]
[1741866851705,23.47276754,126.88,126.87,0.0001]
[1741866852079,32.22626754,126.88,126.87,0.0001]
[1741866853604,51.92986754,126.88,126.83,42.5166]
[1741866853802,15.59136754,126.84,126.81,42.5466]
[1741866854101,36.3385,126.88,126.81,42.5466]
[1741866854102,15.59136754,126.83,126.81,42.5466]
[1741866854400,15.6141795,126.83,126.81,42.5466]
[1741866855100,24.39695522,126.83,126.81,42.5466]
[1741866855481,24.39695522,126.84,126.81,42.5466]
[1741866855687,32.28085522,126.84,126.81,42.5466]
[1741866856913,32.27985522,126.86,126.81,50.4322]
[1741866857418,24.39695522,126.84,126.81,42.5466]
[1741866858084,32.28065522,126.85,126.81,50.4323]
[1741866858286,24.39695522,126.85,126.81,50.4323]
[1741866858486,32.27985522,126.86,126.81,50.4323]
[1741866858696,7.8829,126.86,126.81,50.4323]
[1741866858907,32.27985522,126.86,126.81,50.4323]
[1741866859106,24.39695522,126.85,126.81,50.4323]
[1741866859301,7.882,126.87,126.82,0.28432314]
[1741866859502,32.27895522,126.87,126.82,42.80092314]
[1741866859706,24.39695522,126.86,126.82,50.68582314]
[1741866860900,32.27975522,126.86,126.82,50.68582314]
[1741866861196,24.39695522,126.86,126.82,42.80092314]
[1741866862219,32.27965522,126.86,126.82,42.80092314]
[1741866862809,24.39695522,126.85,126.82,42.80092314]
[1741866863114,24.39695522,126.84,126.82,42.5166]
[1741866863295,24.39695522,126.83,126.82,42.5166]
[1741866864202,32.28145522,126.83,126.82,42.5166]
[1741866865121,32.28145522,126.83,126.81,0.03]
[1741866865308,24.39695522,126.82,126.81,0.03]
[1741866866819,32.28205522,126.82,126.81,0.03]
[1741866867314,24.39695522,126.82,126.81,0.03]
[1741866868426,24.39695522,126.83,126.81,0.03]
[1741866868627,24.39695522,126.82,126.81,0.03]
[1741866869233,24.39695522,126.83,126.81,0.03]
[1741866869732,24.39695522,126.84,126.81,0.03]
[1741866869942,24.39695522,126.86,126.81,42.5466]
[1741866870230,24.39695522,126.85,126.81,42.5466]
[1741866870419,24.39695522,126.84,126.81,50.4323]
[1741866870606,24.39695522,126.85,126.81,50.4323]
[1741866870916,24.39695522,126.84,126.81,42.5466]
[1741866871114,24.39695522,126.83,126.81,42.5466]
[1741866872344,32.28185522,126.83,126.81,42.5466]
[1741866873747,24.39695522,126.84,126.81,42.5466]
[1741866874232,24.39326971,126.84,126.81,50.4324]
[1741866874440,32.27656971,126.85,126.81,50.4324]
[1741866875043,23.49389038,126.85,126.81,50.4324]
[1741866875251,15.61059038,126.84,126.81,42.5466]
[1741866875625,15.61059038,126.82,126.81,42.5466]
[1741866875922,15.61059038,126.83,126.81,42.5466]
[1741866876328,15.61059038,126.84,126.81,42.5466]
[1741866876538,23.49449038,126.84,126.81,42.5466]
[1741866876920,15.61059038,126.83,126.81,42.5466]
[1741866877636,15.61059038,126.84,126.81,42.5466]
[1741866878541,15.61059038,126.83,126.81,42.5466]
[1741866879639,15.61059038,126.84,126.81,42.5466]
[1741866880745,15.61059038,126.84,126.81,50.4323]
[1741866881238,15.61059038,126.85,126.81,50.4323]
[1741866881443,23.49389038,126.85,126.81,42.5466]
[1741866882335,15.61059038,126.84,126.81,42.5466]
[1741866882733,15.61059038,126.83,126.81,42.5466]
[1741866883047,15.61059038,126.82,126.81,42.5466]
[1741866884841,23.49569038,126.82,126.81,42.5466]
[1741866887527,23.49569038,126.82,126.81,0.03]
[1741866887843,15.61059038,126.82,126.81,0.03]
[1741866889126,23.49569038,126.82,126.81,0.03]
[1741866906495,23.49569038,126.82,126.81,0.0001]
[1741866907010,20.0,126.79,126.78,0.03]
[1741866907291,35.61059038,126.79,126.78,0.0001]
[1741866907993,35.61059038,126.79,126.77,0.063]
[1741866908201,35.61059038,126.78,126.77,0.063]
[1741866908791,43.49819038,126.78,126.77,0.063]
[1741866909110,43.49819038,126.78,126.77,0.0001]
[1741866909474,62.14783924,126.78,126.76,0.0001]
[1741866909680,15.61059038,126.77,126.76,0.0001]
[1741866910601,23.49889038,126.77,126.76,0.0001]
[1741866911094,8.50650741,126.79,126.76,0.0001]
[1741866911095,7.887,126.79,126.76,0.0001]
[1741866911302,15.61059038,126.78,126.76,0.0001]
[1741866912000,15.61059038,126.77,126.76,0.0001]
[1741866913293,15.61059038,126.79,126.76,42.5167]
[1741866914497,15.61059038,126.8,126.76,52.4548]
[1741866915508,15.61059038,126.79,126.76,52.4548]
[1741866915882,15.61059038,126.8,126.76,52.4548]
[1741866916179,2.2555,126.86,126.77,34.54456238]
[1741866916379,15.61059038,126.81,126.77,180.60092314]
[1741866916582,15.61059038,126.8,126.77,42.80092314]
[1741866917493,15.61059038,126.8,126.77,42.5166]
[1741866917692,15.61059038,126.78,126.77,42.5166]
[1741866918703,15.61059038,126.8,126.77,50.4048]
[1741866918904,7.8848,126.83,126.77,42.5166]
[1741866918905,15.61059038,126.79,126.77,42.5166]
[1741866919498,15.61059038,126.78,126.77,42.5166]
[1741866919901,15.61059038,126.79,126.77,42.5166]
[1741866920210,15.61059038,126.79,126.77,50.4048]
[1741866920401,15.61059038,126.79,126.77,42.5166]
[1741866922593,15.61059038,126.78,126.76,0.0001]
[1741866922794,15.61059038,126.77,126.76,0.0001]
[1741866924295,23.49889038,126.77,126.76,0.0001]
[1741866927391,20.0,126.75,126.74,0.063]
[1741866927590,61.86923924,126.77,126.73,0.063]
[1741866927591,35.61059038,126.74,126.73,0.063]
[1741866928420,43.50069038,126.74,126.73,0.063]
[1741866932118,35.61059038,126.74,126.73,0.063]
[1741866932327,15.61059038,126.74,126.73,0.063]
[1741866932623,23.50069038,126.74,126.73,0.063]
[1741866933420,35.61059038,126.74,126.73,0.063]
[1741866933808,15.61059038,126.75,126.73,0.063]
[1741866934121,15.61059038,126.76,126.73,44.8379]
[1741866934310,15.61059038,126.75,126.73,44.8379]
[1741866934831,15.61059038,126.76,126.73,44.8379]
[1741866935434,23.49999038,126.76,126.73,44.8379]
[1741866935607,0.063,126.74,126.73,44.8379]
[1741866937028,0.063,126.74,126.73,63.771872]
[1741866937235,0.063,126.74,126.73,225.07316238]
[1741866937409,0.063,126.74,126.73,217.18246238]
[1741866937611,0.063,126.74,126.73,201.571872]
[1741866939023,0.063,126.74,126.73,182.92222314]
[1741866940311,0.063,126.74,126.73,45.12222314]
[1741866944027,0.063,126.74,126.73,42.5796]
[1741866946934,15.67359038,126.74,126.73,42.5796]
[1741866947230,0.063,126.74,126.73,42.5796]
[1741866950511,0.063,126.74,126.73,42.86392314]
[1741866953241,0.063,126.74,126.73,222.81486238]
[1741866954450,7.8873,126.79,126.76,0.28432314]
[1741866954633,7.8873,126.79,126.76,42.73792314]
[1741866955024,23.49789038,126.79,126.76,42.73792314]
[1741866956553,7.8873,126.79,126.76,42.73792314]
[1741866956753,23.49639038,126.81,126.76,42.73792314]
[1741866957843,15.61059038,126.8,126.76,42.73792314]
[1741866959153,23.49729038,126.8,126.76,42.73792314]
[1741866959726,15.61059038,126.79,126.76,42.73792314]
[1741866959937,23.49729038,126.8,126.76,42.73792314]
[1741866962631,0.063,126.81,126.78,0.28432314]
[1741866963930,0.063,126.81,126.78,23.78221352]
[1741866964447,0.063,126.81,126.78,8.17162314]
[1741866964649,0.063,126.81,126.78,23.78221352]
[1741866964948,0.063,126.81,126.78,15.89491352]
[1741866966148,0.063,126.81,126.8,34.54456238]
[1741866966344,0.063,126.81,126.8,214.79816238]
[1741866966539,0.063,126.81,126.8,199.187572]
[1741866968532,0.063,126.81,126.8,214.79816238]
[1741866968934,0.063,126.81,126.8,199.187572]
[1741866972652,0.063,126.81,126.8,180.53792314]
[1741866972853,14.91043115,126.81,126.8,42.4536]
[1741866973148,14.91043115,126.81,126.77,42.4536]
[1741866973354,34.84743115,126.78,126.74,42.4836]
[1741866973542,14.84743115,126.76,126.74,42.4836]
[1741866973742,20.0,126.78,126.74,42.4836]
[1741866973948,14.84743115,126.76,126.74,42.4836]
[1741866974135,14.84743115,126.75,126.74,42.4836]
[1741866974337,14.84743115,126.75,126.74,0.03]
[1741866974744,22.73693115,126.75,126.74,0.03]
[1741866983967,7.8895,126.75,126.74,0.03]
[1741866985744,7.8884,126.77,126.74,0.03]
[1741866986352,22.73383115,126.8,126.74,14.87743115]
[1741866986662,14.84743115,126.79,126.74,57.33103115]
[1741866986852,42.44983115,126.8,126.75,33.78140315]
[1741866987046,42.44983115,126.8,126.75,18.933972]
[1741866987361,14.84743115,126.79,126.74,180.2836]
[1741866987768,42.44983115,126.8,126.74,195.13103115]
[1741866987956,42.44983115,126.8,126.74,203.02113115]
[1741866988575,42.44983115,126.8,126.74,195.13103115]
[1741866988759,14.84743115,126.79,126.74,195.13103115]
[1741866988967,7.8876,126.78,126.74,195.13103115]
[1741866989449,7.8876,126.78,126.75,0.28432314]
[1741866989649,22.73443115,126.79,126.75,0.28432314]
[1741866990048,22.73443115,126.79,126.75,42.73792314]
[1741866991373,22.73443115,126.79,126.75,42.4536]
[1741866991862,34.62623115,126.81,126.75,57.30103115]
[1741866992039,7.8866,126.8,126.76,15.13175429]
[1741866993181,7.8866,126.8,126.76,23.02055429]
[1741866993547,14.91043115,126.81,126.8,0.28432314]
[1741866993548,0.063,126.81,126.8,0.28432314]
[1741866993746,0.063,126.81,126.8,57.58535429]
[1741866994445,0.063,126.81,126.8,42.73792314]
[1741866994665,0.063,126.81,126.8,57.58535429]
[1741866996160,0.063,126.81,126.8,42.73792314]
[1741866998247,0.063,126.81,126.8,57.58535429]
[1741866998566,0.063,126.81,126.8,42.73792314]
[1741866998867,0.063,126.81,126.8,42.4536]
[1741867004667,0.063,126.81,126.78,42.4536]
[1741867006366,14.84743115,126.8,126.76,180.2536]
[1741867006564,14.84743115,126.78,126.76,42.4536]
[1741867006759,14.84743115,126.77,126.74,180.2836]
[1741867007170,14.84743115,126.76,126.74,180.2836]
[1741867007469,14.84743115,126.75,126.74,180.2836]
[1741867007670,14.84743115,126.75,126.74,0.03]
[1741867008470,22.73693115,126.75,126.74,0.03]
[1741867008972,7.8895,126.75,126.74,0.03]
[1741867009361,7.8889,126.76,126.74,0.03]
[1741867010774,7.8884,126.77,126.74,0.03]
[1741867011349,31.11548732,126.77,126.74,0.03]
[1741867012181,20.0,126.79,126.74,0.31432314]
[1741867012478,20.0,126.79,126.74,65.99501046]
[1741867012660,7.8876,126.78,126.74,65.99501046]
[1741867012862,7.8876,126.78,126.74,42.76792314]
[1741867013254,31.11468732,126.78,126.74,42.76792314]
[1741867013854,7.8876,126.78,126.74,42.76792314]
[1741867014659,31.11468732,126.78,126.74,42.76792314]
[1741867019578,23.22708732,126.77,126.74,42.76792314]
[1741867019779,31.11468732,126.78,126.74,42.4836]
[1741867020375,7.8876,126.78,126.74,73.60058732]
[1741867020685,7.8876,126.78,126.74,73.60068732]
[1741867021484,7.8876,126.78,126.74,65.71068732]
[1741867022064,31.11468732,126.78,126.74,42.4836]
[1741867022259,7.8876,126.78,126.74,65.71068732]
[1741867022663,31.11468732,126.78,126.74,42.4836]
[1741867023386,7.8876,126.78,126.74,65.71068732]
[1741867023800,7.8876,126.78,126.75,23.51141046]
[1741867024165,7.8876,126.78,126.75,0.28432314]
[1741867025103,7.8876,126.78,126.75,23.51141046]
[1741867026182,7.8864,126.8,126.76,23.22708732]
[1741867026786,31.11348732,126.8,126.75,44.79402314]
[1741867026995,31.11348732,126.8,126.75,68.02111046]
[1741867027299,50.82948732,126.8,126.75,68.02111046]
[1741867027489,50.82948732,126.8,126.75,44.79402314]
[1741867027791,31.11598732,126.76,126.75,42.4536]
[1741867027992,31.11598732,126.76,126.74,0.03]
[1741867028185,7.8889,126.76,126.74,0.03]
[1741867028485,31.11598732,126.76,126.74,0.03]
[1741867028870,7.8885,126.77,126.74,0.31432314]
[1741867030471,42.47223409,126.77,126.74,0.03]
[1741867030794,14.86303409,126.76,126.74,0.03]
[1741867031094,42.47223409,126.77,126.74,0.03]
[1741867032393,7.8885,126.77,126.74,0.31432314]
[1741867033782,7.9508,126.78,126.74,0.31432314]
[1741867033978,0.063,126.78,126.74,15.17735723]
[1741867034689,0.063,126.78,126.74,0.31432314]
[1741867036099,7.9506,126.78,126.74,0.31432314]
[1741867036600,0.063,126.78,126.76,14.86303409]
[1741867037499,0.063,126.78,126.77,15.00519566]
[1741867037675,0.063,126.78,126.77,15.14735723]
[1741867038695,0.063,126.78,126.77,221.93890609]
[1741867040900,0.063,126.78,126.77,281.39104245]
[1741867041287,0.063,126.78,126.77,221.93890609]
[1741867045801,0.063,126.81,126.8,0.28432314]
[1741867046111,0.063,126.81,126.8,42.67492314]
[1741867047196,0.063,126.81,126.8,57.53795723]
[1741867048313,0.063,126.81,126.8,42.67492314]
[1741867048510,0.063,126.81,126.8,42.3906]
[1741867048704,14.92603409,126.81,126.8,42.3906]
[1741867048901,0.063,126.81,126.8,42.3906]
[1741867051307,7.9488,126.81,126.8,42.3906]
[1741867051703,7.9488,126.81,126.77,180.1906]
[1741867051901,7.9488,126.81,126.78,0.28432314]
[1741867052103,0.063,126.81,126.8,15.14735723]
[1741867052309,0.063,126.81,126.8,42.67492314]
[1741867052816,0.063,126.81,126.8,57.53795723]
[1741867053805,0.063,126.81,126.8,84.07400609]
[1741867054716,0.063,126.81,126.8,76.18760609]
[1741867056300,0.063,126.82,126.81,42.46976157]
[1741867056502,0.063,126.82,126.81,58.65749743]
[1741867056697,0.063,126.82,126.81,61.261572]
[1741867057416,0.063,126.82,126.81,42.61192314]
[1741867057905,0.063,126.82,126.81,42.3276]
[1741867061113,14.92603409,126.82,126.81,42.3276]
[1741867061917,22.81113409,126.82,126.81,42.3276]
[1741867062600,42.52403409,126.82,126.78,42.3576]
[1741867062800,14.86303409,126.8,126.78,42.3576]
[1741867063001,14.86303409,126.81,126.78,42.3576]
[1741867063508,50.80893409,126.82,126.78,42.3576]
[1741867063710,16.233,126.82,126.78,42.3576]
[1741867063912,31.09603409,126.82,126.78,42.3576]
[1741867064219,7.9481,126.82,126.78,57.22063409]
[1741867066000,7.9481,126.82,126.79,18.933972]
[1741867066203,7.9481,126.82,126.79,199.061572]
[1741867068913,0.063,126.82,126.79,221.81160609]
[1741867069804,0.063,126.82,126.81,0.28432314]
[1741867070004,0.063,126.82,126.81,15.14735723]
[1741867070225,0.063,126.82,126.81,213.92460609]
[1741867072006,0.063,126.82,126.81,221.81040609]
[1741867073733,0.03,126.87,126.84,18.933972]
[1741867073917,0.03,126.87,126.84,213.86160609]
[1741867074536,0.03,126.87,126.84,198.998572]
[1741867075235,0.03,126.87,126.84,213.86160609]
[1741867075816,0.03,126.87,126.84,198.998572]
[1741867076224,0.03,126.87,126.84,180.34892314]
[1741867077534,7.912,126.87,126.84,180.34892314]
[1741867078043,7.912,126.87,126.84,42.54892314]
[1741867080239,7.912,126.87,126.86,0.28432314]